fUSD/lending_fUSD_20240728
["ID","MTS","AMOUNT","RATE_DAILY","PERIOD"]
[333480761,1722178248945,-704.62,0.00010997,2]
[333480762,1722178248956,-704.62,0.00010997,2]
[333480763,1722178248966,-502.58983667,0.00010997,2]
[333480764,1722178248975,-502.56749191,0.00010997,2]
[333480765,1722178248985,-500.64614631,0.00010997,2]
[333480766,1722178248996,-500.0,0.00010997,2]
[333480767,1722178249005,-500.0,0.00010997,2]
[333480768,1722178249015,-500.0,0.00010997,2]
[333480769,1722178249024,-500.0,0.00010997,2]
[333480770,1722178249034,-502.35396502,0.00010997,2]
[333480771,1722178249045,-500.54596916,0.00010997,2]
[333480772,1722178249056,-500.67933532,0.00010997,2]
[333480773,1722178249066,-501.39384388,0.00010997,2]
[333480774,1722178249076,-500.75688168,0.00010997,2]
[333480775,1722178249086,-500.0,0.00010997,2]
[333480776,1722178249096,-500.0,0.00010997,2]
[333480777,1722178249106,-500.0,0.00010997,2]
[333480778,1722178249116,-500.0,0.00010997,2]
[333480779,1722178249126,-500.0,0.00010997,2]
[333480780,1722178249136,-502.37427994,0.00010997,2]
[333480781,1722178249146,-500.82313458,0.00010997,2]
[333480782,1722178249156,-500.61988152,0.00010997,2]
[333480783,1722178249168,-327.51837563,0.00010997,2]
[333480784,1722178249177,-500.0,0.00010997,2]
[333480785,1722178249186,-501.83178206,0.00010997,2]
[333480786,1722178249196,-500.0,0.00010997,2]
[333480787,1722178249206,-502.67135607,0.00010997,2]
[333480788,1722178249216,-500.62392055,0.00010997,2]
[333480789,1722178249225,-500.0,0.00010997,2]
[333480790,1722178249234,-500.47157304,0.00010997,2]
[333480791,1722178249244,-580.29779122,0.00010997,2]
[333480792,1722178249254,-500.96943121,0.00010997,2]
[333480793,1722178249263,-500.56552896,0.00010997,2]
[333480794,1722178249273,-500.40565957,0.00010997,2]
[333480795,1722178249283,-502.77255174,0.00010997,2]
[333480796,1722178249293,-501.02729085,0.00010997,2]
[333480797,1722178249302,-501.49548334,0.00010997,2]
[333480798,1722178249312,-500.40696375,0.00010997,2]
[333480799,1722178249322,-500.62552354,0.00010997,2]
[333480800,1722178249331,-500.0,0.00010997,2]
[333480801,1722178249341,-501.03494771,0.00010997,2]
[333480802,1722178249351,-500.0,0.00010997,2]
[333480803,1722178249361,-502.57681618,0.00010997,2]
[333480804,1722178249371,-501.01715703,0.00010997,2]
[333480805,1722178249380,-502.69489992,0.00010997,2]
[333480806,1722178249390,-500.0,0.00010997,2]
[333480807,1722178249401,-473.93631657,0.00010997,2]
[333480808,1722178249412,-500.0,0.00010997,2]
[333480809,1722178249423,-500.0,0.00010997,2]
[333480810,1722178249433,-207.31549175,0.00010997,2]
[333480811,1722178249443,-420.58,0.00010998,2]
[333480812,1722178249453,-500.0,0.00010998,2]
[333480813,1722178249463,-500.0,0.00010998,2]
[333480814,1722178249473,-558.48,0.00010998,2]
[333480815,1722178249482,-500.0,0.00010998,2]
[333480816,1722178249492,-500.0,0.00010998,2]
[333480817,1722178249502,-500.0,0.00010998,2]
[333480818,1722178249511,-500.0,0.00010998,2]
[333480819,1722178249521,-500.0,0.00010998,2]
[333480820,1722178249531,-500.0,0.00010998,2]
[333480821,1722178249540,-500.0,0.00010998,2]
[333480822,1722178249550,-500.0,0.00010998,2]
[333480823,1722178249560,-500.0,0.00010998,2]
[333480824,1722178249574,-500.0,0.00010998,2]
[333480825,1722178249584,-500.0,0.00010998,2]
[333480826,1722178249595,-500.0,0.00010998,2]
[333480827,1722178249607,-500.0,0.00010998,2]
[333480828,1722178249617,-500.0,0.00010998,2]
[333480829,1722178249628,-500.0,0.00010998,2]
[333480830,1722178249640,-500.0,0.00010998,2]
[333480831,1722178249650,-500.0,0.00010998,2]
[333480832,1722178249661,-500.0,0.00010998,2]
[333480833,1722178249674,-500.0,0.00010998,2]
[333480834,1722178249684,-500.0,0.00010998,2]
[333480835,1722178249694,-500.0,0.00010998,2]
[333480836,1722178249705,-500.0,0.00010998,2]
[333480837,1722178249715,-500.0,0.00010998,2]
[333480838,1722178249727,-500.0,0.00010998,2]
[333480839,1722178249738,-500.0,0.00010998,2]
[333480840,1722178249748,-500.0,0.00010998,2]
[333480841,1722178249759,-500.0,0.00010998,2]
[333480842,1722178249770,-152.32,0.00010998,2]
[333480843,1722178249780,-500.0,0.00010998,2]
[333480844,1722178249790,-500.0,0.00010998,2]
[333480845,1722178249800,-500.0,0.00010998,2]
[333480846,1722178249810,-500.0,0.00010998,2]
[333480847,1722178249821,-500.0,0.00010998,2]
[333480848,1722178249831,-500.0,0.00010998,2]
[333480849,1722178249842,-500.0,0.00010998,2]
[333480850,1722178249852,-500.0,0.00010998,2]
[333480851,1722178249862,-500.0,0.00010998,2]
[333480852,1722178249872,-500.0,0.00010998,2]
[333480853,1722178249882,-500.0,0.00010998,2]
[333480854,1722178249893,-500.0,0.00010998,2]
[333480855,1722178249902,-500.0,0.00010998,2]
[333480856,1722178249912,-273.9,0.00010998,2]
[333480857,1722178249924,-587.52,0.00010998,2]
[333480858,1722178249933,-500.0,0.00010998,2]
[333480859,1722178249942,-328.69,0.00010998,2]
[333480860,1722178249952,-500.0,0.00010998,2]
[333480861,1722178249961,-500.0,0.00010998,2]
[333480862,1722178249971,-500.0,0.00010998,2]
[333480863,1722178249980,-500.0,0.00010998,2]
[333480864,1722178249989,-500.0,0.00010998,2]
[333480865,1722178249998,-500.0,0.00010998,2]
[333480866,1722178250007,-500.0,0.00010998,2]
[333480867,1722178250017,-500.0,0.00010998,2]
[333480868,1722178250028,-500.0,0.00010998,2]
[333480869,1722178250039,-500.0,0.00010998,2]
[333480870,1722178250048,-500.0,0.00010998,2]
[333480871,1722178250059,-500.0,0.00010998,2]
[333480872,1722178250069,-500.0,0.00010998,2]
[333480873,1722178250080,-704.62,0.00010998,2]
[333480874,1722178250090,-704.62,0.00010998,2]
[333480875,1722178250099,-704.62,0.00010998,2]
[333480876,1722178250109,-704.62,0.00010998,2]
[333480877,1722178250118,-704.62,0.00010998,2]
[333480878,1722178250128,-704.62,0.00010998,2]
[333480879,1722178250138,-704.62,0.00010998,2]
[333480880,1722178250148,-518.58,0.00010998,2]
[333480881,1722178250359,-704.62,0.00010998,2]
[333480882,1722178250371,-500.0,0.00010998,2]
[333480883,1722178250381,-500.0,0.00010998,2]
[333480884,1722178250391,-500.0,0.00010998,2]
[333480885,1722178250401,-500.0,0.00010998,2]
[333480886,1722178250410,-377.93969228,0.00010998,2]
[333480887,1722178250423,-444.9,0.00010998,2]
[333480888,1722178250433,-500.0,0.00010998,2]
[333480889,1722178250443,-500.0,0.00010998,2]
[333480890,1722178250453,-500.0,0.00010998,2]
[333480891,1722178250463,-502.98802034,0.00010999,2]
[333480892,1722178250473,-500.0,0.00010999,2]
[333480893,1722178250483,-500.83954964,0.00010999,2]
[333480894,1722178250493,-502.2129374,0.00010999,2]
[333480895,1722178250503,-500.0,0.00010999,2]
[333480896,1722178250513,-506.54,0.00010999,2]
[333480897,1722178250524,-500.0,0.00010999,2]
[333480898,1722178250534,-500.0,0.00010999,2]
[333480899,1722178250545,-500.0,0.00010999,2]
[333480900,1722178250555,-500.0,0.00010999,2]
[333480901,1722178250568,-500.0,0.00010999,2]
[333480902,1722178250577,-500.0,0.00010999,2]
[333480903,1722178250587,-500.0,0.00010999,2]
[333480904,1722178250599,-500.0,0.00010999,2]
[333480905,1722178250616,-500.0,0.00010999,2]
[333480906,1722178250627,-500.0,0.00010999,2]
[333480907,1722178250639,-500.0,0.00010999,2]
[333480908,1722178250650,-500.0,0.00010999,2]
[333480909,1722178250660,-342.92994881,0.00010999,2]
[333480910,1722178250672,-503.10676816,0.00010999,2]
[333480911,1722178250682,-500.0,0.00010999,2]
[333480912,1722178250691,-502.20988291,0.00010999,2]
[333480913,1722178250701,-500.0,0.00010999,2]
[333480914,1722178250712,-500.0,0.00010999,2]
[333480915,1722178250721,-577.52,0.00010999,2]
[333480916,1722178250731,-596.65,0.00010999,2]
[333480917,1722178250740,-577.52,0.00010999,2]
[333480918,1722178250750,-577.52,0.00010999,2]
[333480919,1722178250760,-577.52,0.00010999,2]
[333480920,1722178250769,-577.52,0.00010999,2]
[333480921,1722178250779,-577.52,0.00010999,2]
[333480922,1722178250788,-500.0,0.00010999,2]
[333480923,1722178250797,-577.52,0.00010999,2]
[333480924,1722178250807,-577.52,0.00010999,2]
[333480925,1722178250816,-500.0,0.00010999,2]
[333480926,1722178250826,-577.52,0.00010999,2]
[333480927,1722178250835,-547.1,0.00010999,2]
[333480928,1722178250845,-577.52,0.00010999,2]
[333480929,1722178250854,-577.52,0.00010999,2]
[333480930,1722178250864,-577.52,0.00010999,2]
[333480931,1722178250874,-577.52,0.00010999,2]
[333480932,1722178250883,-577.52,0.00010999,2]
[333480933,1722178250894,-577.52,0.00010999,2]
[333480934,1722178250903,-577.52,0.00010999,2]
[333480935,1722178250912,-577.59,0.00010999,2]
[333480936,1722178250923,-506.02387159,0.00010999,2]
[333480937,1722178250934,-573.36,0.00010999,2]
[333480938,1722178250944,-573.36,0.00010999,2]
[333480939,1722178250954,-521.29560249,0.00010999,2]
[333480940,1722178250963,-573.36,0.00010999,2]
[333480941,1722178250972,-573.36,0.00010999,2]
[333480942,1722178250982,-502.44714947,0.00010999,2]
[333480943,1722178250991,-573.36,0.00010999,2]
[333480944,1722178251000,-573.36,0.00010999,2]
[333480945,1722178251009,-573.36,0.00010999,2]
[333480946,1722178251018,-573.36,0.00010999,2]
[333480947,1722178251028,-500.0,0.00010999,2]
[333480948,1722178251037,-573.36,0.00010999,2]
[333480949,1722178251046,-500.0,0.00010999,2]
[333480950,1722178251055,-573.36,0.00010999,2]
[333480951,1722178251065,-328.68,0.00010999,2]
[333480952,1722178251074,-573.36,0.00010999,2]
[333480953,1722178251083,-573.36,0.00010999,2]
[333480954,1722178251092,-573.36,0.00010999,2]
[333480955,1722178251102,-573.36,0.00010999,2]
[333480956,1722178251112,-573.36,0.00010999,2]
[333480957,1722178251122,-573.36,0.00010999,2]
[333480958,1722178251132,-573.38,0.00010999,2]
[333480959,1722178251141,-504.72,0.00010999,2]
[333480960,1722178251151,-500.0,0.00010999,2]
[333480961,1722178251161,-500.0,0.00010999,2]
[333480962,1722178251171,-602.78,0.00010999,2]
[333480963,1722178251181,-500.93430807,0.00010999,2]
[333480964,1722178251190,-500.0,0.00010999,2]
[333480965,1722178251200,-500.0,0.00010999,2]
[333480966,1722178251212,-646.63,0.00010999,2]
[333480967,1722178251222,-501.41,0.00010999,2]
[333480968,1722178251232,-503.14516234,0.00010999,2]
[333480969,1722178251241,-500.0,0.00010999,2]
[333480970,1722178251251,-283.18,0.00010999,2]
[333480971,1722178251260,-512.97559064,0.00010999,2]
[333480972,1722178251270,-284.07746825,0.00010999,2]
[333480973,1722178251279,-500.0,0.00010999,2]
[333480974,1722178251288,-500.0,0.00010999,2]
[333480975,1722178251299,-500.0,0.00010999,2]
[333480976,1722178251308,-519.72,0.00010999,2]
[333480977,1722178251318,-516.63009316,0.00010999,2]
[333480978,1722178251327,-502.28944108,0.00010999,2]
[333480979,1722178251336,-503.00185707,0.00010999,2]
[333480980,1722178251346,-543.42548363,0.00010999,2]
[333480981,1722178251355,-500.0,0.00010999,2]
[333480982,1722178251365,-201.41,0.00010999,2]
[333480983,1722178251374,-558.3,0.00010999,2]
[333480984,1722178251384,-500.0,0.00010999,2]
[333480985,1722178251394,-500.0,0.00010999,2]
[333480986,1722178251403,-500.0,0.00010999,2]
[333480987,1722178251413,-407.64,0.00010999,2]
[333480988,1722178251425,-500.0,0.00010999,2]
[333480989,1722178251434,-500.0,0.00010999,2]
[333480990,1722178251444,-500.0,0.00010999,2]
[333480991,1722178251455,-500.0,0.00010999,2]
[333480992,1722178251465,-505.85417411,0.00010999,2]
[333480993,1722178251475,-500.0,0.00010999,2]
[333480994,1722178251486,-500.0,0.00010999,2]
[333480995,1722178251496,-500.0,0.00010999,2]
[333480996,1722178251505,-500.0,0.00010999,2]
[333480997,1722178251516,-500.0,0.00010999,2]
[333480998,1722178251527,-500.0,0.00010999,2]
[333480999,1722178251538,-158.92,0.00010999,2]
[333481000,1722178251549,-500.0,0.00010999,2]
[333481001,1722178251560,-500.0,0.00010999,2]
[333481002,1722178251576,-501.09810735,0.00010999,2]
[333481003,1722178251586,-500.0,0.00010999,2]
[333481004,1722178251596,-500.0,0.00010999,2]
[333481005,1722178251606,-500.0,0.00010999,2]
[333481006,1722178251615,-500.0,0.00010999,2]
[333481007,1722178251625,-270.65,0.00010999,2]
[333481008,1722178251635,-500.0,0.00010999,2]
[333481009,1722178251645,-500.0,0.00010999,2]
[333481010,1722178251656,-500.0,0.00010999,2]
[333481011,1722178251666,-500.0,0.00010999,2]
[333481012,1722178251681,-500.0,0.00010999,2]
[333481013,1722178251690,-500.0,0.00010999,2]
[333481014,1722178251700,-500.0,0.00010999,2]
[333481015,1722178251710,-500.0,0.00010999,2]
[333481016,1722178251720,-500.0,0.00010999,2]
[333481017,1722178251730,-500.0,0.00010999,2]
[333481018,1722178251740,-172.37,0.00010999,2]
[333481019,1722178251750,-504.05209943,0.00010999,2]
[333481020,1722178251760,-500.0,0.00010999,2]
[333481021,1722178251769,-495.45,0.00010999,2]
[333481022,1722178251779,-503.87218823,0.00010999,2]
[333481023,1722178251789,-484.91404723,0.00010999,2]
[333481024,1722178251798,-337.31,0.00010999,2]
[333481025,1722178251808,-500.0,0.00010999,2]
[333481026,1722178251818,-500.0,0.00010999,2]
[333481027,1722178251827,-521.38,0.00010999,2]
[333481028,1722178251836,-639.23,0.00010999,2]
[333481029,1722178251846,-504.03683979,0.00010999,2]
[333481030,1722178251855,-503.94695171,0.00010999,2]
[333481031,1722178251865,-500.0,0.00010999,2]
[333481032,1722178251875,-500.0,0.00010999,2]
[333481033,1722178251884,-500.0,0.00010999,2]
[333481034,1722178251893,-425.34,0.00010999,2]
[333481035,1722178251904,-2000.0,0.00010999,2]
[333481036,1722178251914,-2000.0,0.00010999,2]
[333481037,1722178251927,-2000.0,0.00010999,2]
[333481038,1722178251937,-1724.6877,0.00010999,2]
[333481039,1722178251946,-500.0,0.00010999,2]
[333481040,1722178251955,-500.0,0.00010999,2]
[333481041,1722178251964,-500.0,0.00010999,2]
[333481042,1722178251973,-500.0,0.00010999,2]
[333481043,1722178251982,-500.0,0.00010999,2]
[333481044,1722178251992,-500.0,0.00010999,2]
[333481045,1722178252001,-500.0,0.00010999,2]
[333481046,1722178252010,-568.42,0.00010999,2]
[333481047,1722178252019,-500.0,0.00010999,2]
[333481048,1722178252029,-500.0,0.00010999,2]
[333481049,1722178252039,-500.0,0.00010999,2]
[333481050,1722178252048,-500.0,0.00010999,2]
[333481051,1722178252058,-500.0,0.00010999,2]
[333481052,1722178252067,-500.0,0.00010999,2]
[333481053,1722178252076,-561.12,0.00010999,2]
[333481054,1722178252087,-500.0,0.00010999,2]
[333481055,1722178252096,-500.0,0.00010999,2]
[333481056,1722178252105,-500.0,0.00010999,2]
[333481057,1722178252115,-500.0,0.00010999,2]
[333481058,1722178252124,-500.0,0.00010999,2]
[333481059,1722178252133,-500.0,0.00010999,2]
[333481060,1722178252143,-500.0,0.00010999,2]
[333481061,1722178252153,-500.0,0.00010999,2]
[333481062,1722178252164,-500.0,0.00010999,2]
[333481063,1722178252174,-500.0,0.00010999,2]
[333481064,1722178252183,-500.0,0.00010999,2]
[333481065,1722178252192,-500.0,0.00010999,2]
[333481066,1722178252201,-500.0,0.00010999,2]
[333481067,1722178252210,-500.0,0.00010999,2]
[333481068,1722178252220,-460.07,0.00010999,2]
[333481069,1722178252229,-2000.0,0.00010999,2]
[333481070,1722178252239,-500.0,0.00010999,2]
[333481071,1722178252248,-500.0,0.00010999,2]
[333481072,1722178252257,-451.40592637,0.00010999,2]
[333481073,1722178252267,-500.0,0.00010999,2]
[333481074,1722178252276,-500.0,0.00010999,2]
[333481075,1722178252286,-500.0,0.00010999,2]
[333481076,1722178252296,-500.0,0.00010999,2]
[333481077,1722178252305,-500.0,0.00010999,2]
[333481078,1722178252315,-500.0,0.00010999,2]
[333481079,1722178252325,-500.0,0.00010999,2]
[333481080,1722178252334,-500.0,0.00010999,2]
[333481081,1722178252344,-500.0,0.00010999,2]
[333481082,1722178252353,-500.0,0.00010999,2]
[333481083,1722178252363,-500.0,0.00010999,2]
[333481084,1722178252372,-500.0,0.00010999,2]
[333481085,1722178252382,-500.0,0.00010999,2]
[333481086,1722178252391,-500.0,0.00010999,2]
[333481087,1722178252401,-500.0,0.00010999,2]
[333481088,1722178252410,-179.38126173,0.00010999,2]
[333481089,1722178252421,-518.58,0.00010999,2]
[333481090,1722178252430,-518.58,0.00010999,2]
[333481091,1722178252439,-704.62,0.00010999,2]
[333481092,1722178252449,-518.58,0.00010999,2]
[333481093,1722178252458,-704.62,0.00010999,2]
[333481094,1722178252467,-518.58,0.00010999,2]
[333481095,1722178252477,-704.62,0.00010999,2]
[333481096,1722178252487,-518.58,0.00010999,2]
[333481097,1722178252497,-704.62,0.00010999,2]
[333481098,1722178252507,-518.58,0.00010999,2]
[333481099,1722178252516,-704.62,0.00010999,2]
[333481100,1722178252525,-518.58,0.00010999,2]
[333481101,1722178252535,-704.62,0.00010999,2]
[333481102,1722178252544,-704.62,0.00010999,2]
[333481103,1722178252554,-704.62,0.00010999,2]
[333481104,1722178252565,-704.62,0.00010999,2]
[333481105,1722178252576,-518.58,0.00010999,2]
[333481106,1722178252585,-518.58,0.00010999,2]
[333481107,1722178252594,-704.6643,0.00010999,2]
[333481108,1722178252606,-518.58,0.00010999,2]
[333481109,1722178252615,-518.58,0.00010999,2]
[333481110,1722178252624,-518.58,0.00010999,2]
[333481111,1722178252634,-518.58,0.00010999,2]
[333481112,1722178252645,-518.58,0.00010999,2]
[333481113,1722178252655,-518.58,0.00010999,2]
[333481114,1722178252664,-518.58,0.00010999,2]
[333481115,1722178252674,-518.58,0.00010999,2]
[333481116,1722178252684,-518.58,0.00010999,2]
[333481117,1722178252693,-518.58,0.00010999,2]
[333481118,1722178252703,-518.58,0.00010999,2]
[333481119,1722178252713,-518.58,0.00010999,2]
[333481120,1722178252722,-518.58,0.00010999,2]
[333481121,1722178252732,-518.61,0.00010999,2]
[333481122,1722178252742,-500.0,0.00010999,2]
[333481123,1722178252751,-500.0,0.00010999,2]
[333481124,1722178252760,-500.0,0.00010999,2]
[333481125,1722178252770,-500.0,0.00010999,2]
[333481126,1722178252779,-324.13936082,0.00010999,2]
[333481127,1722178252788,-2000.0,0.00010999,2]
[333481128,1722178252798,-200.0,0.00010999,2]
[333481129,1722178252807,-500.0,0.00010999,2]
[333481130,1722178252817,-500.0,0.00010999,2]
[333481131,1722178252826,-500.0,0.00010999,2]
[333481132,1722178252835,-500.0,0.00010999,2]
[333481133,1722178252844,-500.0,0.00010999,2]
[333481134,1722178252854,-500.0,0.00010999,2]
[333481135,1722178252863,-500.0,0.00010999,2]
[333481136,1722178252873,-500.0,0.00010999,2]
[333481137,1722178252882,-500.0,0.00010999,2]
[333481138,1722178252892,-500.0,0.00010999,2]
[333481139,1722178252901,-207.47,0.00010999,2]
[333481140,1722178252911,-500.0,0.00010999,2]
[333481141,1722178252921,-166.82,0.00010999,2]
[333481142,1722178252931,-1322.32,0.00010999,2]
[333481143,1722178252941,-500.0,0.00010999,2]
[333481144,1722178252950,-500.0,0.00010999,2]
[333481145,1722178252960,-500.0,0.00010999,2]
[333481146,1722178252970,-500.0,0.00010999,2]
[333481147,1722178252980,-500.0,0.00010999,2]
[333481148,1722178252990,-500.0,0.00010999,2]
[333481149,1722178252999,-500.0,0.00010999,2]
[333481150,1722178253009,-500.0,0.00010999,2]
[333481151,1722178253018,-500.0,0.00010999,2]
[333481152,1722178253029,-500.0,0.00010999,2]
[333481153,1722178253038,-500.0,0.00010999,2]
[333481154,1722178253047,-500.0,0.00010999,2]
[333481155,1722178253057,-500.0,0.00010999,2]
[333481156,1722178253066,-500.0,0.00010999,2]
[333481157,1722178253076,-500.0,0.00010999,2]
[333481158,1722178253085,-195.38945399,0.00010999,2]
[333481159,1722178253095,-3000.0,0.00010999,2]
[333481160,1722178253105,-154.89292255,0.00010999,2]
[333481161,1722178253114,-174880.85692818,0.00011,2]
[333481162,1722178253124,-150.0,0.00011,2]
[333481163,1722178253133,-264.19,0.00011,2]
[333481164,1722178253143,-883162.15095667,0.00011,2]
[333481165,1722178258815,-216.35,8.509e-05,2]
[333481166,1722178278642,-5280.85593547,0.00010516,2]
[333481167,1722178281556,-150.0,0.00010068,2]
[333481168,1722178281702,-150.0,0.00010068,2]
[333481169,1722178281744,-150.0,0.00010068,2]
[333481170,1722178281869,-150.0,0.00010068,2]
[333481171,1722178281932,-150.0,0.00010068,2]
[333481172,1722178282003,-50.0,0.00010068,2]
[333481173,1722178282024,-100.0,0.00010068,2]
[333481174,1722178282070,-150.0,0.00010068,2]
[333481175,1722178282112,-150.0,0.00010068,2]
[333481176,1722178282172,-150.0,0.00010068,2]
[333481177,1722178282239,-150.0,0.00010068,2]
[333481178,1722178282280,-150.0,0.00010516,2]
[333481179,1722178282342,-150.0,0.00010516,2]
[333481180,1722178282395,-180.85593547,0.00010516,2]
[333481191,1722179063910,-302.87483183,7.907e-05,2]
[333481192,1722179063932,-160.28,7.907e-05,2]
[333481193,1722179063955,-315.76,8.219e-05,2]
[333481194,1722179063976,-721.08516817,9.555e-05,2]
[333481238,1722179431546,-299.97,8.219e-05,2]
[333481240,1722179431556,-1167.538072,9.101e-05,2]
[333481242,1722179431566,-200.0,9.147e-05,2]
[333481244,1722179431575,-300.0,9.454e-05,2]
[333481245,1722179431584,-300.0,9.454e-05,2]
[333481247,1722179431594,-11441.9999,9.455e-05,2]
[333481248,1722179431603,-10000.0,9.544e-05,2]
[333481249,1722179431613,-150.0,9.554e-05,2]
[333481250,1722179431622,-158.89214618,9.555e-05,2]
[333481251,1722179431633,-24776.28752641,9.555e-05,2]
[333481252,1722179431643,-20370.21790881,9.555e-05,2]
[333481253,1722179431652,-155.0,9.555e-05,2]
[333481254,1722179431661,-1369.92317728,9.555e-05,2]
[333481255,1722179431670,-363.62565954,9.555e-05,2]
[333481256,1722179431680,-291.29119994,9.555e-05,2]
[333481257,1722179431689,-786.85877071,9.555e-05,2]
[333481258,1722179431698,-2637.73686294,9.555e-05,2]
[333481259,1722179431709,-155.0,9.555e-05,2]
[333481260,1722179431719,-1350.0,9.555e-05,2]
[333481261,1722179431728,-411.49590119,9.555e-05,2]
[333481262,1722179431737,-871.33841357,9.555e-05,2]
[333481263,1722179431746,-180.04283334,9.555e-05,2]
[333481264,1722179431755,-150.0,9.555e-05,2]
[333481265,1722179431764,-150.0,9.555e-05,2]
[333481266,1722179431774,-150.0,9.555e-05,2]
[333481267,1722179431783,-157.02382699,9.555e-05,2]
[333481268,1722179431793,-1245.75,9.577e-05,2]
[333481269,1722179431802,-23890.0,9.589e-05,2]
[333481270,1722179431811,-250.0,9.597e-05,2]
[333481271,1722179431821,-195.18,9.821e-05,2]
[333481272,1722179431831,-964.4,9.821e-05,2]
[333481273,1722179431841,-150.99,9.821e-05,2]
[333481274,1722179431851,-1000.0,9.855e-05,2]
[333481275,1722179431861,-317.0,9.88e-05,2]
[333481276,1722179431871,-1250.0,0.0001,2]
[333481277,1722179431881,-391.19271713,0.00010068,2]
[333481278,1722179431890,-500.0,0.00010068,2]
[333481279,1722179431899,-171.36,0.00010076,2]
[333481280,1722179431911,-499.99,0.00010078,2]
[333481281,1722179431920,-317.0,0.0001015,2]
[333481282,1722179431931,-452.69,0.00010178,2]
[333481283,1722179431940,-150.48,0.00010178,2]
[333481284,1722179431950,-150.0,0.00010178,2]
[333481285,1722179431959,-302.41,0.00010178,2]
[333481286,1722179431968,-395.1,0.00010178,2]
[333481287,1722179431977,-355.96,0.00010178,2]
[333481288,1722179431987,-171.71,0.00010178,2]
[333481289,1722179431996,-530.14,0.00010178,2]
[333481290,1722179432007,-151.67,0.00010178,2]
[333481291,1722179432016,-355.96,0.00010192,2]
[333481292,1722179432026,-387.33,0.00010192,2]
[333481293,1722179432037,-355.96,0.00010192,2]
[333481294,1722179432046,-355.42,0.00010192,2]
[333481295,1722179432056,-530.14,0.00010281,2]
[333481296,1722179432066,-425.69,0.00010281,2]
[333481297,1722179432075,-355.96,0.00010281,2]
[333481298,1722179432087,-150.0,0.00010281,2]
[333481299,1722179432096,-150.0,0.00010281,2]
[333481300,1722179432104,-355.96,0.00010281,2]
[333481301,1722179432114,-425.69,0.00010281,2]
[333481302,1722179432124,-355.96,0.00010281,2]
[333481303,1722179432134,-150.0,0.00010281,2]
[333481304,1722179432145,-530.14,0.00010281,2]
[333481305,1722179432156,-530.14,0.00010281,2]
[333481306,1722179432165,-150.0,0.00010281,2]
[333481307,1722179432174,-425.69,0.00010281,2]
[333481308,1722179432184,-355.96,0.00010281,2]
[333481309,1722179432193,-150.0,0.00010281,2]
[333481310,1722179432202,-530.14,0.00010281,2]
[333481311,1722179432211,-355.96,0.00010281,2]
[333481312,1722179432221,-425.69,0.00010281,2]
[333481313,1722179432232,-384.29,0.00010281,2]
[333481314,1722179432241,-850.82,0.00010281,2]
[333481315,1722179432251,-150.0,0.00010281,2]
[333481316,1722179432260,-420.0,0.00010399,2]
[333481317,1722179432270,-317.0,0.0001042,2]